{"text_format":"1","workbook":"xlsx","n_sheets":1,"sheets":["Approved Div splits"],"not_rendered":{"charts":0,"images":0,"macros":1,"external_links":5,"defined_names":45,"comments":0,"pivot_tables":0},"unopened":[],"bounds":{"document_bytes":16777216,"sheet_cells":100000,"rows_first":2000,"rows_last":500,"rows_between":2000,"halvings":0,"cell_chars":16384,"cell_head_chars":4096},"cells_cut":0,"cells_raw":0,"read":"whole","date_system":"1900"}

{"sheet":"Approved Div splits","index":0,"n_rows":101,"n_cols":96,"rows_kept":101,"cut":false,"hidden":false,"merged":[]}
["Division","Team Name","Seed Time","Declared Time","Break Out","Handicap?","RR","Format","Number of races",null,null,null,null,null,null,null,null,null,null,null,null,null,null,null,null,null,null,{"$f":"IF(#REF!=\"\",\"\",#REF!)","v":{"$error":"#REF!"}},{"$f":"IF(B6=\"\",\"\",B6)","v":"Belconnen Dodgeda Bullets"},null,{"$f":"INDEX(AB1:AB101,MATCH(TeamNameCell,'Approved Div splits'!AC1:AC101,0))","v":{"$error":"#N/A"}},null,null,null,null,{"$f":"IF(B6=\"\",\"\",'[1]Race Meeting Information'!$B$3 &\" - \" & B6)","v":"CAF1031 - Belconnen Dodgeda Bullets"}]
[null,"Norwest Thunderdogs 1",16.344999999999999,null,"-",null,null,"Regular",null,null,null,null,null,null,null,null,null,null,null,null,null,null,null,null,null,null,null,{"$f":"IF(#REF!=\"\",\"\",BZ3)","v":{"$error":"#REF!"}},{"$f":"IF(B3=\"\",\"\",B3)","v":"Canberra X Factor"},null,null,null,null,null,null,{"$f":"IF(B3=\"\",\"\",'[1]Race Meeting Information'!$B$3 &\" - \" & B3)","v":"CAF1031 - Canberra X Factor"},null,null,null,null,null,null,null,null,null,null,null,null,null,null,null,null,null,null,null,null,null,null,null,null,null,null,null,null,null,null,null,null,null,null,null,null,null,null,null,null,null,"Team 2",null,null,null,null,null,null,null,null,null,null,null,null,null,null,null,6,"T-Keilor Sunrises","Left"]
["Div 1","Canberra X Factor",17.486999999999998,null,"-","Non-Handicap",3,"Best of 5",9,null,null,null,null,null,null,null,null,null,null,null,null,null,null,null,null,null,null,{"$f":"IF(#REF!=\"\",\"\",BZ4)","v":{"$error":"#REF!"}},{"$f":"IF(B4=\"\",\"\",B4)","v":"Norwest Thunderdogs 2"},null,null,null,null,null,null,{"$f":"IF('Approved Div splits'!B4=\"\",\"\",'[1]Race Meeting Information'!$B$3 &\" - \" & 'Approved Div splits'!B4)","v":"CAF1031 - Norwest Thunderdogs 2"},null,null,null,null,null,null,null,null,null,null,null,null,null,null,null,null,null,null,null,null,null,null,null,null,null,null,null,null,null,null,null,null,null,null,null,null,null,null,null,null,null,"Team 3"]
[null,"Norwest Thunderdogs 2",null,17.5,"-",null,null,null,null,null,null,null,null,null,null,null,null,null,null,null,null,null,null,null,null,null,null,{"$f":"IF(#REF!=\"\",\"\",BZ5)","v":{"$error":"#REF!"}},{"$f":"IF(B5=\"\",\"\",B5)","v":"Norwest Thunderdogs 4"},null,null,null,null,null,null,{"$f":"IF('Approved Div splits'!B5=\"\",\"\",'[1]Race Meeting Information'!$B$3 &\" - \" & 'Approved Div splits'!B5)","v":"CAF1031 - Norwest Thunderdogs 4"},null,null,null,null,null,null,null,null,null,null,null,null,null,null,null,null,null,null,null,null,null,null,null,null,null,null,null,null,null,null,null,null,null,null,null,null,null,null,null,null,null,"Team 4"]
[null,"Norwest Thunderdogs 4",18.123999999999999,null,{"$f":"ROUNDDOWN(C5,1)-0.5","v":17.600000000000001},null,null,null,null,null,null,null,null,null,null,null,null,null,null,null,null,null,null,null,null,null,null,{"$f":"IF(#REF!=\"\",\"\",BZ7)","v":{"$error":"#REF!"}},{"$f":"IF(B7=\"\",\"\",B7)","v":"Norwest Thunderdogs 5"},null,null,null,null,null,null,{"$f":"IF('Approved Div splits'!B7=\"\",\"\",'[1]Race Meeting Information'!$B$3 &\" - \" & 'Approved Div splits'!B7)","v":"CAF1031 - Norwest Thunderdogs 5"},null,null,null,null,null,null,null,null,null,null,null,null,null,null,null,null,null,null,null,null,null,null,null,null,null,null,null,null,null,null,null,null,null,null,null,null,null,null,null,null,null,"Team 5"]
["Div 2","Belconnen Dodgeda Bullets",null,19.2,{"$f":"ROUNDDOWN(D6,1)-0.5","v":18.7},null,null,"Regular"]
[null,"Norwest Thunderdogs 5",null,19.2,{"$f":"ROUNDDOWN(D7,1)-0.5","v":18.7},"Non-Handicap",2,"Best of 5",12,null,null,null,null,null,null,null,null,null,null,null,null,null,null,null,null,null,null,{"$f":"IF(#REF!=\"\",\"\",BZ8)","v":{"$error":"#REF!"}},{"$f":"IF(B16=\"\",\"\",B16)","v":"New Wave"},null,null,null,null,null,null,{"$f":"IF('Approved Div splits'!B16=\"\",\"\",'[1]Race Meeting Information'!$B$3 &\" - \" & 'Approved Div splits'!B16)","v":"CAF1031 - New Wave"},null,null,null,null,null,null,null,null,null,null,null,null,null,null,null,null,null,null,null,null,null,null,null,null,null,null,null,null,null,null,null,null,null,null,null,null,null,null,null,null,null,"Team 6"]
[null,"Wooftimus Prime",19.395,null,{"$f":"E5","v":17.600000000000001},null,null,null,null,null,null,null,null,null,null,null,null,null,null,null,null,null,null,null,null,null,null,{"$f":"IF(#REF!=\"\",\"\",BZ9)","v":{"$error":"#REF!"}},{"$f":"IF(B8=\"\",\"\",B8)","v":"Wooftimus Prime"},null,null,null,null,null,null,{"$f":"IF('Approved Div splits'!B8=\"\",\"\",'[1]Race Meeting Information'!$B$3 &\" - \" & 'Approved Div splits'!B8)","v":"CAF1031 - Wooftimus Prime"},null,null,null,null,null,null,null,null,null,null,null,null,null,null,null,null,null,null,null,null,null,null,null,null,null,null,null,null,null,null,null,null,null,null,null,null,null,null,null,null,null,"Team 7"]
[null,"Star Trackers",22.085000000000001,null,{"$f":"ROUNDDOWN(C9,1)-0.5","v":21.5},null,null,null,null,null,null,null,null,null,null,null,null,null,null,null,null,null,null,null,null,null,null,{"$f":"IF(#REF!=\"\",\"\",BZ10)","v":{"$error":"#REF!"}},{"$f":"IF(B17=\"\",\"\",B17)","v":"Zoomies"},null,null,null,null,null,null,{"$f":"IF(B17=\"\",\"\",'[1]Race Meeting Information'!$B$3 &\" - \" & B17)","v":"CAF1031 - Zoomies"},null,null,null,null,null,null,null,null,null,null,null,null,null,null,null,null,null,null,null,null,null,null,null,null,null,null,null,null,null,null,null,null,null,null,null,null,null,null,null,null,null,"Team 8"]
["Div 3","Norwest Thunderdogs 6",null,22.2,{"$f":"ROUNDDOWN(D10,1)-0.5","v":21.7},null,null,"Regular",null,null,null,null,null,null,null,null,null,null,null,null,null,null,null,null,null,null,null,{"$f":"IF(#REF!=\"\",\"\",BZ11)","v":{"$error":"#REF!"}},{"$f":"IF(B18=\"\",\"\",B18)","v":"Flyball Friends"},null,null,null,null,null,null,{"$f":"IF('Approved Div splits'!B18=\"\",\"\",'[1]Race Meeting Information'!$B$3 &\" - \" & 'Approved Div splits'!B18)","v":"CAF1031 - Flyball Friends"},null,null,null,null,null,null,null,null,null,null,null,null,null,null,null,null,null,null,null,null,null,null,null,null,null,null,null,null,null,null,null,null,null,null,null,null,null,null,null,null,null,"Team 9"]
[null,"Havoc Hounds",null,24.45,{"$f":"ROUNDDOWN(D11,1)-0.5","v":23.9},"Handicap",2,"Best of 5",12,null,null,null,null,null,null,null,null,null,null,null,null,null,null,null,null,null,null,{"$f":"IF(#REF!=\"\",\"\",BZ12)","v":{"$error":"#REF!"}},{"$f":"IF(B9=\"\",\"\",B9)","v":"Star Trackers"},null,null,null,null,null,null,{"$f":"IF('Approved Div splits'!B9=\"\",\"\",'[1]Race Meeting Information'!$B$3 &\" - \" & 'Approved Div splits'!B9)","v":"CAF1031 - Star Trackers"},null,null,null,null,null,null,null,null,null,null,null,null,null,null,null,null,null,null,null,null,null,null,null,null,null,null,null,null,null,null,null,null,null,null,null,null,null,null,null,null,null,"Team 10"]
[null,"MAD Dash",24.97,null,{"$f":"ROUNDDOWN(C12,1)-0.5","v":24.4},null,null,null,null,null,null,null,null,null,null,null,null,null,null,null,null,null,null,null,null,null,null,{"$f":"IF(#REF!=\"\",\"\",BZ13)","v":{"$error":"#REF!"}},{"$f":"IF(B19=\"\",\"\",B19)","v":"We Opened This"},null,null,null,null,null,null,{"$f":"IF('Approved Div splits'!B19=\"\",\"\",'[1]Race Meeting Information'!$B$3 &\" - \" & 'Approved Div splits'!B19)","v":"CAF1031 - We Opened This"},null,null,null,null,null,null,null,null,null,null,null,null,null,null,null,null,null,null,null,null,null,null,null,null,null,null,null,null,null,null,null,null,null,null,null,null,null,null,null,null,null,"Team 11"]
[null,"Tuggeranong Howling Torpedoes",26.215,null,{"$f":"ROUNDDOWN(C13,1)-0.5","v":25.7},null,null,"Regular",null,null,null,null,null,null,null,null,null,null,null,null,null,null,null,null,null,null,null,{"$f":"IF(#REF!=\"\",\"\",BZ14)","v":{"$error":"#REF!"}},{"$f":"IF(B10=\"\",\"\",B10)","v":"Norwest Thunderdogs 6"},null,null,null,null,null,null,{"$f":"IF('Approved Div splits'!B10=\"\",\"\",'[1]Race Meeting Information'!$B$3 &\" - \" & 'Approved Div splits'!B10)","v":"CAF1031 - Norwest Thunderdogs 6"},null,null,null,null,null,null,null,null,null,null,null,null,null,null,null,null,null,null,null,null,null,null,null,null,null,null,null,null,null,null,null,null,null,null,null,null,null,null,null,null,null,"Team 12"]
["Div 4","Spud Dogs",28.623999999999999,null,{"$f":"ROUNDDOWN(C14,1)-0.5","v":28.1},"Handicap",3,"Best of 5",9,null,null,null,null,null,null,null,null,null,null,null,null,null,null,null,null,null,null,{"$f":"IF(#REF!=\"\",\"\",BZ15)","v":{"$error":"#REF!"}},{"$f":"IF(B11=\"\",\"\",B11)","v":"Havoc Hounds"},null,null,null,null,null,null,{"$f":"IF('Approved Div splits'!B11=\"\",\"\",'[1]Race Meeting Information'!$B$3 &\" - \" & 'Approved Div splits'!B11)","v":"CAF1031 - Havoc Hounds"},null,null,null,null,null,null,null,null,null,null,null,null,null,null,null,null,null,null,null,null,null,null,null,null,null,null,null,null,null,null,null,null,null,null,null,null,null,null,null,null,null,"Team 13"]
[null,"Primal Woofers",29.43,null,28.9,null,null,null,null,null,null,null,null,null,null,null,null,null,null,null,null,null,null,null,null,null,null,{"$f":"IF(#REF!=\"\",\"\",BZ16)","v":{"$error":"#REF!"}},{"$f":"IF(B12=\"\",\"\",B12)","v":"MAD Dash"},null,null,null,null,null,null,{"$f":"IF('Approved Div splits'!B12=\"\",\"\",'[1]Race Meeting Information'!$B$3 &\" - \" & 'Approved Div splits'!B12)","v":"CAF1031 - MAD Dash"},null,null,null,null,null,null,null,null,null,null,null,null,null,null,null,null,null,null,null,null,null,null,null,null,null,null,null,null,null,null,null,null,null,null,null,null,null,null,null,null,null,"Team 14"]
[null,"New Wave",null,19.3,{"$f":"ROUNDDOWN(D16,1)-0.5","v":18.8},null,null,null,null,null,null,null,null,null,null,null,null,null,null,null,null,null,null,null,null,null,null,{"$f":"IF(#REF!=\"\",\"\",BZ17)","v":{"$error":"#REF!"}},{"$f":"IF(B13=\"\",\"\",B13)","v":"Tuggeranong Howling Torpedoes"},null,null,null,null,null,null,{"$f":"IF('Approved Div splits'!B13=\"\",\"\",'[1]Race Meeting Information'!$B$3 &\" - \" & 'Approved Div splits'!B13)","v":"CAF1031 - Tuggeranong Howling Torpedoes"},null,null,null,null,null,null,null,null,null,null,null,null,null,null,null,null,null,null,null,null,null,null,null,null,null,null,null,null,null,null,null,null,null,null,null,null,null,null,null,null,null,"Team 15"]
["Open","Zoomies",null,21.4,{"$f":"ROUNDDOWN(D17,1)-0.5","v":20.9},null,null,"Open",12,null,null,null,null,null,null,null,null,null,null,null,null,null,null,null,null,null,null,{"$f":"IF(#REF!=\"\",\"\",BZ18)","v":{"$error":"#REF!"}},{"$f":"IF(B14=\"\",\"\",B14)","v":"Spud Dogs"},null,null,null,null,null,null,{"$f":"IF('Approved Div splits'!B14=\"\",\"\",'[1]Race Meeting Information'!$B$3 &\" - \" & 'Approved Div splits'!B14)","v":"CAF1031 - Spud Dogs"},null,null,null,null,null,null,null,null,null,null,null,null,null,null,null,null,null,null,null,null,null,null,null,null,null,null,null,null,null,null,null,null,null,null,null,null,null,null,null,null,null,"Team 16"]
[null,"Flyball Friends",null,21.5,21,"Handicap",2,"Best of 5",null,null,null,null,null,null,null,null,null,null,null,null,null,null,null,null,null,null,null,{"$f":"IF(#REF!=\"\",\"\",BZ19)","v":{"$error":"#REF!"}},{"$f":"IF(B15=\"\",\"\",B15)","v":"Primal Woofers"},null,null,null,null,null,null,{"$f":"IF('Approved Div splits'!B15=\"\",\"\",'[1]Race Meeting Information'!$B$3 &\" - \" & 'Approved Div splits'!B15)","v":"CAF1031 - Primal Woofers"},null,null,null,null,null,null,null,null,null,null,null,null,null,null,null,null,null,null,null,null,null,null,null,null,null,null,null,null,null,null,null,null,null,null,null,null,null,null,null,null,null,"Team 18"]
[null,"We Opened This",null,22.1,21.6,null,null,null,null,null,null,null,null,null,null,null,null,null,null,null,null,null,null,null,null,null,null,{"$f":"IF(#REF!=\"\",\"\",BZ20)","v":{"$error":"#REF!"}},{"$f":"IF(B16=\"\",\"\",B16)","v":"New Wave"},null,null,null,null,null,null,{"$f":"IF('Approved Div splits'!B16=\"\",\"\",'[1]Race Meeting Information'!$B$3 &\" - \" & 'Approved Div splits'!B16)","v":"CAF1031 - New Wave"},null,null,null,null,null,null,null,null,null,null,null,null,null,null,null,null,null,null,null,null,null,null,null,null,null,null,null,null,null,null,null,null,null,null,null,null,null,null,null,null,null,"Team 19"]
[null,null,null,null,null,null,null,null,null,null,null,null,null,null,null,null,null,null,null,null,null,null,null,null,null,null,null,{"$f":"IF(#REF!=\"\",\"\",BZ21)","v":{"$error":"#REF!"}},{"$f":"IF(B17=\"\",\"\",B17)","v":"Zoomies"},null,null,null,null,null,null,{"$f":"IF('Approved Div splits'!B17=\"\",\"\",'[1]Race Meeting Information'!$B$3 &\" - \" & 'Approved Div splits'!B17)","v":"CAF1031 - Zoomies"},null,null,null,null,null,null,null,null,null,null,null,null,null,null,null,null,null,null,null,null,null,null,null,null,null,null,null,null,null,null,null,null,null,null,null,null,null,null,null,null,null,"Team 20"]
[null,null,null,null,null,null,null,"Total Races",{"$f":"SUM(I3:I19)","v":54},null,null,null,null,null,null,null,null,null,null,null,null,null,null,null,null,null,null,{"$f":"IF(#REF!=\"\",\"\",BZ22)","v":{"$error":"#REF!"}},{"$f":"IF(B18=\"\",\"\",B18)","v":"Flyball Friends"},null,null,null,null,null,null,{"$f":"IF('Approved Div splits'!B18=\"\",\"\",'[1]Race Meeting Information'!$B$3 &\" - \" & 'Approved Div splits'!B18)","v":"CAF1031 - Flyball Friends"},null,null,null,null,null,null,null,null,null,null,null,null,null,null,null,null,null,null,null,null,null,null,null,null,null,null,null,null,null,null,null,null,null,null,null,null,null,null,null,null,null,"Team 21"]
[null,null,null,null,null,null,null,null,null,null,null,null,null,null,null,null,null,null,null,null,null,null,null,null,null,null,null,{"$f":"IF(#REF!=\"\",\"\",BZ23)","v":{"$error":"#REF!"}},{"$f":"IF(B19=\"\",\"\",B19)","v":"We Opened This"},null,null,null,null,null,null,{"$f":"IF('Approved Div splits'!B19=\"\",\"\",'[1]Race Meeting Information'!$B$3 &\" - \" & 'Approved Div splits'!B19)","v":"CAF1031 - We Opened This"},null,null,null,null,null,null,null,null,null,null,null,null,null,null,null,null,null,null,null,null,null,null,null,null,null,null,null,null,null,null,null,null,null,null,null,null,null,null,null,null,null,"Team 22"]
[null,null,null,null,null,null,null,null,null,null,null,null,null,null,null,null,null,null,null,null,null,null,null,null,null,null,null,{"$f":"IF(#REF!=\"\",\"\",BZ24)","v":{"$error":"#REF!"}},{"$f":"IF(B20=\"\",\"\",B20)","v":""},null,null,null,null,null,null,{"$f":"IF('Approved Div splits'!B20=\"\",\"\",'[1]Race Meeting Information'!$B$3 &\" - \" & 'Approved Div splits'!B20)","v":""},null,null,null,null,null,null,null,null,null,null,null,null,null,null,null,null,null,null,null,null,null,null,null,null,null,null,null,null,null,null,null,null,null,null,null,null,null,null,null,null,null,"Team 23"]
[null,null,null,null,null,null,null,null,null,null,null,null,null,null,null,null,null,null,null,null,null,null,null,null,null,null,null,{"$f":"IF(#REF!=\"\",\"\",BZ25)","v":{"$error":"#REF!"}},{"$f":"IF(B21=\"\",\"\",B21)","v":""},null,null,null,null,null,null,{"$f":"IF('Approved Div splits'!B21=\"\",\"\",'[1]Race Meeting Information'!$B$3 &\" - \" & 'Approved Div splits'!B21)","v":""},null,null,null,null,null,null,null,null,null,null,null,null,null,null,null,null,null,null,null,null,null,null,null,null,null,null,null,null,null,null,null,null,null,null,null,null,null,null,null,null,null,"Team 24"]
[null,null,null,null,null,null,null,null,null,null,null,null,null,null,null,null,null,null,null,null,null,null,null,null,null,null,null,{"$f":"IF(#REF!=\"\",\"\",BZ26)","v":{"$error":"#REF!"}},{"$f":"IF(B22=\"\",\"\",B22)","v":""},null,null,null,null,null,null,{"$f":"IF('Approved Div splits'!B22=\"\",\"\",'[1]Race Meeting Information'!$B$3 &\" - \" & 'Approved Div splits'!B22)","v":""},null,null,null,null,null,null,null,null,null,null,null,null,null,null,null,null,null,null,null,null,null,null,null,null,null,null,null,null,null,null,null,null,null,null,null,null,null,null,null,null,null,"Team 25"]
[null,null,null,null,null,null,null,null,null,null,null,null,null,null,null,null,null,null,null,null,null,null,null,null,null,null,null,{"$f":"IF(#REF!=\"\",\"\",BZ27)","v":{"$error":"#REF!"}},{"$f":"IF(B23=\"\",\"\",B23)","v":""},null,null,null,null,null,null,{"$f":"IF('Approved Div splits'!B23=\"\",\"\",'[1]Race Meeting Information'!$B$3 &\" - \" & 'Approved Div splits'!B23)","v":""},null,null,null,null,null,null,null,null,null,null,null,null,null,null,null,null,null,null,null,null,null,null,null,null,null,null,null,null,null,null,null,null,null,null,null,null,null,null,null,null,null,"Team 26"]
[null,null,null,null,null,null,null,null,null,null,null,null,null,null,null,null,null,null,null,null,null,null,null,null,null,null,null,{"$f":"IF(#REF!=\"\",\"\",BZ28)","v":{"$error":"#REF!"}},{"$f":"IF(B28=\"\",\"\",B28)","v":""},null,null,null,null,null,null,{"$f":"IF(B28=\"\",\"\",'[1]Race Meeting Information'!$B$3 &\" - \" & B28)","v":""},null,null,null,null,null,null,null,null,null,null,null,null,null,null,null,null,null,null,null,null,null,null,null,null,null,null,null,null,null,null,null,null,null,null,null,null,null,null,null,null,null,"Team 27"]
[null,null,null,null,null,null,null,null,null,null,null,null,null,null,null,null,null,null,null,null,null,null,null,null,null,null,null,{"$f":"IF(#REF!=\"\",\"\",BZ29)","v":{"$error":"#REF!"}},{"$f":"IF(B29=\"\",\"\",B29)","v":""},null,null,null,null,null,null,{"$f":"IF(B29=\"\",\"\",'[1]Race Meeting Information'!$B$3 &\" - \" & B29)","v":""},null,null,null,null,null,null,null,null,null,null,null,null,null,null,null,null,null,null,null,null,null,null,null,null,null,null,null,null,null,null,null,null,null,null,null,null,null,null,null,null,null,"Team 28"]
[null,null,null,null,null,null,null,null,null,null,null,null,null,null,null,null,null,null,null,null,null,null,null,null,null,null,null,{"$f":"IF(#REF!=\"\",\"\",BZ30)","v":{"$error":"#REF!"}},{"$f":"IF(B30=\"\",\"\",B30)","v":""},null,null,null,null,null,null,{"$f":"IF(B30=\"\",\"\",'[1]Race Meeting Information'!$B$3 &\" - \" & B30)","v":""},null,null,null,null,null,null,null,null,null,null,null,null,null,null,null,null,null,null,null,null,null,null,null,null,null,null,null,null,null,null,null,null,null,null,null,null,null,null,null,null,null,"Team 29"]
[null,null,null,null,null,null,null,null,null,null,null,null,null,null,null,null,null,null,null,null,null,null,null,null,null,null,null,{"$f":"IF(#REF!=\"\",\"\",BZ31)","v":{"$error":"#REF!"}},{"$f":"IF(B31=\"\",\"\",B31)","v":""},null,null,null,null,null,null,{"$f":"IF(B31=\"\",\"\",'[1]Race Meeting Information'!$B$3 &\" - \" & B31)","v":""},null,null,null,null,null,null,null,null,null,null,null,null,null,null,null,null,null,null,null,null,null,null,null,null,null,null,null,null,null,null,null,null,null,null,null,null,null,null,null,null,null,"Team 30"]
[null,null,null,null,null,null,null,null,null,null,null,null,null,null,null,null,null,null,null,null,null,null,null,null,null,null,null,{"$f":"IF(#REF!=\"\",\"\",BZ32)","v":{"$error":"#REF!"}},{"$f":"IF(B32=\"\",\"\",B32)","v":""},null,null,null,null,null,null,{"$f":"IF(B32=\"\",\"\",'[1]Race Meeting Information'!$B$3 &\" - \" & B32)","v":""},null,null,null,null,null,null,null,null,null,null,null,null,null,null,null,null,null,null,null,null,null,null,null,null,null,null,null,null,null,null,null,null,null,null,null,null,null,null,null,null,null,"Team 31"]
[null,null,null,null,null,null,null,null,null,null,null,null,null,null,null,null,null,null,null,null,null,null,null,null,null,null,null,{"$f":"IF(#REF!=\"\",\"\",BZ33)","v":{"$error":"#REF!"}},{"$f":"IF(B33=\"\",\"\",B33)","v":""},null,null,null,null,null,null,{"$f":"IF(B33=\"\",\"\",'[1]Race Meeting Information'!$B$3 &\" - \" & B33)","v":""},null,null,null,null,null,null,null,null,null,null,null,null,null,null,null,null,null,null,null,null,null,null,null,null,null,null,null,null,null,null,null,null,null,null,null,null,null,null,null,null,null,"Team 32"]
[null,null,null,null,null,null,null,null,null,null,null,null,null,null,null,null,null,null,null,null,null,null,null,null,null,null,null,{"$f":"IF(#REF!=\"\",\"\",BZ34)","v":{"$error":"#REF!"}},{"$f":"IF(B34=\"\",\"\",B34)","v":""},null,null,null,null,null,null,{"$f":"IF(B34=\"\",\"\",'[1]Race Meeting Information'!$B$3 &\" - \" & B34)","v":""},null,null,null,null,null,null,null,null,null,null,null,null,null,null,null,null,null,null,null,null,null,null,null,null,null,null,null,null,null,null,null,null,null,null,null,null,null,null,null,null,null,"Team 33"]
[null,null,null,null,null,null,null,null,null,null,null,null,null,null,null,null,null,null,null,null,null,null,null,null,null,null,null,{"$f":"IF(#REF!=\"\",\"\",BZ35)","v":{"$error":"#REF!"}},{"$f":"IF(B35=\"\",\"\",B35)","v":""},null,null,null,null,null,null,{"$f":"IF(B35=\"\",\"\",'[1]Race Meeting Information'!$B$3 &\" - \" & B35)","v":""},null,null,null,null,null,null,null,null,null,null,null,null,null,null,null,null,null,null,null,null,null,null,null,null,null,null,null,null,null,null,null,null,null,null,null,null,null,null,null,null,null,"Team 34"]
[null,null,null,null,null,null,null,null,null,null,null,null,null,null,null,null,null,null,null,null,null,null,null,null,null,null,null,{"$f":"IF(#REF!=\"\",\"\",BZ36)","v":{"$error":"#REF!"}},{"$f":"IF(B36=\"\",\"\",B36)","v":""},null,null,null,null,null,null,{"$f":"IF(B36=\"\",\"\",'[1]Race Meeting Information'!$B$3 &\" - \" & B36)","v":""},null,null,null,null,null,null,null,null,null,null,null,null,null,null,null,null,null,null,null,null,null,null,null,null,null,null,null,null,null,null,null,null,null,null,null,null,null,null,null,null,null,"Team 35"]
[null,null,null,null,null,null,null,null,null,null,null,null,null,null,null,null,null,null,null,null,null,null,null,null,null,null,null,{"$f":"IF(#REF!=\"\",\"\",BZ37)","v":{"$error":"#REF!"}},{"$f":"IF(B37=\"\",\"\",B37)","v":""},null,null,null,null,null,null,{"$f":"IF(B37=\"\",\"\",'[1]Race Meeting Information'!$B$3 &\" - \" & B37)","v":""},null,null,null,null,null,null,null,null,null,null,null,null,null,null,null,null,null,null,null,null,null,null,null,null,null,null,null,null,null,null,null,null,null,null,null,null,null,null,null,null,null,"Team 36"]
[null,null,null,null,null,null,null,null,null,null,null,null,null,null,null,null,null,null,null,null,null,null,null,null,null,null,null,{"$f":"IF(#REF!=\"\",\"\",BZ38)","v":{"$error":"#REF!"}},{"$f":"IF(B38=\"\",\"\",B38)","v":""},null,null,null,null,null,null,{"$f":"IF(B38=\"\",\"\",'[1]Race Meeting Information'!$B$3 &\" - \" & B38)","v":""},null,null,null,null,null,null,null,null,null,null,null,null,null,null,null,null,null,null,null,null,null,null,null,null,null,null,null,null,null,null,null,null,null,null,null,null,null,null,null,null,null,"Team 37"]
[null,null,null,null,null,null,null,null,null,null,null,null,null,null,null,null,null,null,null,null,null,null,null,null,null,null,null,{"$f":"IF(#REF!=\"\",\"\",BZ39)","v":{"$error":"#REF!"}},{"$f":"IF(B39=\"\",\"\",B39)","v":""},null,null,null,null,null,null,{"$f":"IF(B39=\"\",\"\",'[1]Race Meeting Information'!$B$3 &\" - \" & B39)","v":""},null,null,null,null,null,null,null,null,null,null,null,null,null,null,null,null,null,null,null,null,null,null,null,null,null,null,null,null,null,null,null,null,null,null,null,null,null,null,null,null,null,"Team 38"]
[null,null,null,null,null,null,null,null,null,null,null,null,null,null,null,null,null,null,null,null,null,null,null,null,null,null,null,{"$f":"IF(#REF!=\"\",\"\",BZ40)","v":{"$error":"#REF!"}},{"$f":"IF(B40=\"\",\"\",B40)","v":""},null,null,null,null,null,null,{"$f":"IF(B40=\"\",\"\",'[1]Race Meeting Information'!$B$3 &\" - \" & B40)","v":""},null,null,null,null,null,null,null,null,null,null,null,null,null,null,null,null,null,null,null,null,null,null,null,null,null,null,null,null,null,null,null,null,null,null,null,null,null,null,null,null,null,"Team 39"]
[null,null,null,null,null,null,null,null,null,null,null,null,null,null,null,null,null,null,null,null,null,null,null,null,null,null,null,{"$f":"IF(#REF!=\"\",\"\",BZ41)","v":{"$error":"#REF!"}},{"$f":"IF(B41=\"\",\"\",B41)","v":""},null,null,null,null,null,null,{"$f":"IF(B41=\"\",\"\",'[1]Race Meeting Information'!$B$3 &\" - \" & B41)","v":""},null,null,null,null,null,null,null,null,null,null,null,null,null,null,null,null,null,null,null,null,null,null,null,null,null,null,null,null,null,null,null,null,null,null,null,null,null,null,null,null,null,"Team 40"]
[null,null,null,null,null,null,null,null,null,null,null,null,null,null,null,null,null,null,null,null,null,null,null,null,null,null,null,{"$f":"IF(#REF!=\"\",\"\",BZ42)","v":{"$error":"#REF!"}},{"$f":"IF(B42=\"\",\"\",B42)","v":""},null,null,null,null,null,null,{"$f":"IF(B42=\"\",\"\",'[1]Race Meeting Information'!$B$3 &\" - \" & B42)","v":""},null,null,null,null,null,null,null,null,null,null,null,null,null,null,null,null,null,null,null,null,null,null,null,null,null,null,null,null,null,null,null,null,null,null,null,null,null,null,null,null,null,"Team 41"]
[null,null,null,null,null,null,null,null,null,null,null,null,null,null,null,null,null,null,null,null,null,null,null,null,null,null,null,{"$f":"IF(#REF!=\"\",\"\",BZ43)","v":{"$error":"#REF!"}},{"$f":"IF(B43=\"\",\"\",B43)","v":""},null,null,null,null,null,null,{"$f":"IF(B43=\"\",\"\",'[1]Race Meeting Information'!$B$3 &\" - \" & B43)","v":""},null,null,null,null,null,null,null,null,null,null,null,null,null,null,null,null,null,null,null,null,null,null,null,null,null,null,null,null,null,null,null,null,null,null,null,null,null,null,null,null,null,"Team 42"]
[null,null,null,null,null,null,null,null,null,null,null,null,null,null,null,null,null,null,null,null,null,null,null,null,null,null,null,{"$f":"IF(#REF!=\"\",\"\",BZ44)","v":{"$error":"#REF!"}},{"$f":"IF(B44=\"\",\"\",B44)","v":""},null,null,null,null,null,null,{"$f":"IF(B44=\"\",\"\",'[1]Race Meeting Information'!$B$3 &\" - \" & B44)","v":""},null,null,null,null,null,null,null,null,null,null,null,null,null,null,null,null,null,null,null,null,null,null,null,null,null,null,null,null,null,null,null,null,null,null,null,null,null,null,null,null,null,"Team 43"]
[null,null,null,null,null,null,null,null,null,null,null,null,null,null,null,null,null,null,null,null,null,null,null,null,null,null,null,{"$f":"IF(#REF!=\"\",\"\",BZ45)","v":{"$error":"#REF!"}},{"$f":"IF(B45=\"\",\"\",B45)","v":""},null,null,null,null,null,null,{"$f":"IF(B45=\"\",\"\",'[1]Race Meeting Information'!$B$3 &\" - \" & B45)","v":""},null,null,null,null,null,null,null,null,null,null,null,null,null,null,null,null,null,null,null,null,null,null,null,null,null,null,null,null,null,null,null,null,null,null,null,null,null,null,null,null,null,"Team 44"]
[null,null,null,null,null,null,null,null,null,null,null,null,null,null,null,null,null,null,null,null,null,null,null,null,null,null,null,{"$f":"IF(#REF!=\"\",\"\",BZ46)","v":{"$error":"#REF!"}},{"$f":"IF(B46=\"\",\"\",B46)","v":""},null,null,null,null,null,null,{"$f":"IF(B46=\"\",\"\",'[1]Race Meeting Information'!$B$3 &\" - \" & B46)","v":""},null,null,null,null,null,null,null,null,null,null,null,null,null,null,null,null,null,null,null,null,null,null,null,null,null,null,null,null,null,null,null,null,null,null,null,null,null,null,null,null,null,"Team 45"]
[null,null,null,null,null,null,null,null,null,null,null,null,null,null,null,null,null,null,null,null,null,null,null,null,null,null,null,{"$f":"IF(#REF!=\"\",\"\",BZ47)","v":{"$error":"#REF!"}},{"$f":"IF(B47=\"\",\"\",B47)","v":""},null,null,null,null,null,null,{"$f":"IF(B47=\"\",\"\",'[1]Race Meeting Information'!$B$3 &\" - \" & B47)","v":""},null,null,null,null,null,null,null,null,null,null,null,null,null,null,null,null,null,null,null,null,null,null,null,null,null,null,null,null,null,null,null,null,null,null,null,null,null,null,null,null,null,"Team 46"]
[null,null,null,null,null,null,null,null,null,null,null,null,null,null,null,null,null,null,null,null,null,null,null,null,null,null,null,{"$f":"IF(#REF!=\"\",\"\",BZ48)","v":{"$error":"#REF!"}},{"$f":"IF(B48=\"\",\"\",B48)","v":""},null,null,null,null,null,null,{"$f":"IF(B48=\"\",\"\",'[1]Race Meeting Information'!$B$3 &\" - \" & B48)","v":""},null,null,null,null,null,null,null,null,null,null,null,null,null,null,null,null,null,null,null,null,null,null,null,null,null,null,null,null,null,null,null,null,null,null,null,null,null,null,null,null,null,"Team 47"]
[null,null,null,null,null,null,null,null,null,null,null,null,null,null,null,null,null,null,null,null,null,null,null,null,null,null,null,{"$f":"IF(#REF!=\"\",\"\",BZ49)","v":{"$error":"#REF!"}},{"$f":"IF(B49=\"\",\"\",B49)","v":""},null,null,null,null,null,null,{"$f":"IF(B49=\"\",\"\",'[1]Race Meeting Information'!$B$3 &\" - \" & B49)","v":""},null,null,null,null,null,null,null,null,null,null,null,null,null,null,null,null,null,null,null,null,null,null,null,null,null,null,null,null,null,null,null,null,null,null,null,null,null,null,null,null,null,"Team 48"]
[null,null,null,null,null,null,null,null,null,null,null,null,null,null,null,null,null,null,null,null,null,null,null,null,null,null,null,{"$f":"IF(#REF!=\"\",\"\",BZ50)","v":{"$error":"#REF!"}},{"$f":"IF(B50=\"\",\"\",B50)","v":""},null,null,null,null,null,null,{"$f":"IF(B50=\"\",\"\",'[1]Race Meeting Information'!$B$3 &\" - \" & B50)","v":""},null,null,null,null,null,null,null,null,null,null,null,null,null,null,null,null,null,null,null,null,null,null,null,null,null,null,null,null,null,null,null,null,null,null,null,null,null,null,null,null,null,"Team 49"]
[null,null,null,null,null,null,null,null,null,null,null,null,null,null,null,null,null,null,null,null,null,null,null,null,null,null,null,{"$f":"IF(#REF!=\"\",\"\",BZ51)","v":{"$error":"#REF!"}},{"$f":"IF(B51=\"\",\"\",B51)","v":""},null,null,null,null,null,null,{"$f":"IF(B51=\"\",\"\",'[1]Race Meeting Information'!$B$3 &\" - \" & B51)","v":""},null,null,null,null,null,null,null,null,null,null,null,null,null,null,null,null,null,null,null,null,null,null,null,null,null,null,null,null,null,null,null,null,null,null,null,null,null,null,null,null,null,"Team 50"]
[null,null,null,null,null,null,null,null,null,null,null,null,null,null,null,null,null,null,null,null,null,null,null,null,null,null,null,{"$f":"IF(#REF!=\"\",\"\",BZ52)","v":{"$error":"#REF!"}},{"$f":"IF(B52=\"\",\"\",B52)","v":""},null,null,null,null,null,null,{"$f":"IF(B52=\"\",\"\",'[1]Race Meeting Information'!$B$3 &\" - \" & B52)","v":""},null,null,null,null,null,null,null,null,null,null,null,null,null,null,null,null,null,null,null,null,null,null,null,null,null,null,null,null,null,null,null,null,null,null,null,null,null,null,null,null,null,"Team 51"]
[null,null,null,null,null,null,null,null,null,null,null,null,null,null,null,null,null,null,null,null,null,null,null,null,null,null,null,{"$f":"IF(#REF!=\"\",\"\",BZ53)","v":{"$error":"#REF!"}},{"$f":"IF(B53=\"\",\"\",B53)","v":""},null,null,null,null,null,null,{"$f":"IF(B53=\"\",\"\",'[1]Race Meeting Information'!$B$3 &\" - \" & B53)","v":""},null,null,null,null,null,null,null,null,null,null,null,null,null,null,null,null,null,null,null,null,null,null,null,null,null,null,null,null,null,null,null,null,null,null,null,null,null,null,null,null,null,"Team 52"]
[null,null,null,null,null,null,null,null,null,null,null,null,null,null,null,null,null,null,null,null,null,null,null,null,null,null,null,{"$f":"IF(#REF!=\"\",\"\",BZ54)","v":{"$error":"#REF!"}},{"$f":"IF(B54=\"\",\"\",B54)","v":""},null,null,null,null,null,null,{"$f":"IF(B54=\"\",\"\",'[1]Race Meeting Information'!$B$3 &\" - \" & B54)","v":""},null,null,null,null,null,null,null,null,null,null,null,null,null,null,null,null,null,null,null,null,null,null,null,null,null,null,null,null,null,null,null,null,null,null,null,null,null,null,null,null,null,"Team 53"]
[null,null,null,null,null,null,null,null,null,null,null,null,null,null,null,null,null,null,null,null,null,null,null,null,null,null,null,{"$f":"IF(#REF!=\"\",\"\",BZ55)","v":{"$error":"#REF!"}},{"$f":"IF(B55=\"\",\"\",B55)","v":""},null,null,null,null,null,null,{"$f":"IF(B55=\"\",\"\",'[1]Race Meeting Information'!$B$3 &\" - \" & B55)","v":""},null,null,null,null,null,null,null,null,null,null,null,null,null,null,null,null,null,null,null,null,null,null,null,null,null,null,null,null,null,null,null,null,null,null,null,null,null,null,null,null,null,"Team 54"]
[null,null,null,null,null,null,null,null,null,null,null,null,null,null,null,null,null,null,null,null,null,null,null,null,null,null,null,{"$f":"IF(#REF!=\"\",\"\",BZ56)","v":{"$error":"#REF!"}},{"$f":"IF(B56=\"\",\"\",B56)","v":""},null,null,null,null,null,null,{"$f":"IF(B56=\"\",\"\",'[1]Race Meeting Information'!$B$3 &\" - \" & B56)","v":""},null,null,null,null,null,null,null,null,null,null,null,null,null,null,null,null,null,null,null,null,null,null,null,null,null,null,null,null,null,null,null,null,null,null,null,null,null,null,null,null,null,"Team 55"]
[null,null,null,null,null,null,null,null,null,null,null,null,null,null,null,null,null,null,null,null,null,null,null,null,null,null,null,{"$f":"IF(#REF!=\"\",\"\",BZ57)","v":{"$error":"#REF!"}},{"$f":"IF(B57=\"\",\"\",B57)","v":""},null,null,null,null,null,null,{"$f":"IF(B57=\"\",\"\",'[1]Race Meeting Information'!$B$3 &\" - \" & B57)","v":""},null,null,null,null,null,null,null,null,null,null,null,null,null,null,null,null,null,null,null,null,null,null,null,null,null,null,null,null,null,null,null,null,null,null,null,null,null,null,null,null,null,"Team 56"]
[null,null,null,null,null,null,null,null,null,null,null,null,null,null,null,null,null,null,null,null,null,null,null,null,null,null,null,{"$f":"IF(#REF!=\"\",\"\",BZ58)","v":{"$error":"#REF!"}},{"$f":"IF(B58=\"\",\"\",B58)","v":""},null,null,null,null,null,null,{"$f":"IF(B58=\"\",\"\",'[1]Race Meeting Information'!$B$3 &\" - \" & B58)","v":""},null,null,null,null,null,null,null,null,null,null,null,null,null,null,null,null,null,null,null,null,null,null,null,null,null,null,null,null,null,null,null,null,null,null,null,null,null,null,null,null,null,"Team 57"]
[null,null,null,null,null,null,null,null,null,null,null,null,null,null,null,null,null,null,null,null,null,null,null,null,null,null,null,{"$f":"IF(#REF!=\"\",\"\",BZ59)","v":{"$error":"#REF!"}},{"$f":"IF(B59=\"\",\"\",B59)","v":""},null,null,null,null,null,null,{"$f":"IF(B59=\"\",\"\",'[1]Race Meeting Information'!$B$3 &\" - \" & B59)","v":""},null,null,null,null,null,null,null,null,null,null,null,null,null,null,null,null,null,null,null,null,null,null,null,null,null,null,null,null,null,null,null,null,null,null,null,null,null,null,null,null,null,"Team 58"]
[null,null,null,null,null,null,null,null,null,null,null,null,null,null,null,null,null,null,null,null,null,null,null,null,null,null,null,{"$f":"IF(#REF!=\"\",\"\",BZ60)","v":{"$error":"#REF!"}},{"$f":"IF(B60=\"\",\"\",B60)","v":""},null,null,null,null,null,null,{"$f":"IF(B60=\"\",\"\",'[1]Race Meeting Information'!$B$3 &\" - \" & B60)","v":""},null,null,null,null,null,null,null,null,null,null,null,null,null,null,null,null,null,null,null,null,null,null,null,null,null,null,null,null,null,null,null,null,null,null,null,null,null,null,null,null,null,"Team 59"]
[null,null,null,null,null,null,null,null,null,null,null,null,null,null,null,null,null,null,null,null,null,null,null,null,null,null,null,{"$f":"IF(#REF!=\"\",\"\",BZ61)","v":{"$error":"#REF!"}},{"$f":"IF(B61=\"\",\"\",B61)","v":""},null,null,null,null,null,null,{"$f":"IF(B61=\"\",\"\",'[1]Race Meeting Information'!$B$3 &\" - \" & B61)","v":""},null,null,null,null,null,null,null,null,null,null,null,null,null,null,null,null,null,null,null,null,null,null,null,null,null,null,null,null,null,null,null,null,null,null,null,null,null,null,null,null,null,"Team 60"]
[null,null,null,null,null,null,null,null,null,null,null,null,null,null,null,null,null,null,null,null,null,null,null,null,null,null,null,{"$f":"IF(#REF!=\"\",\"\",BZ62)","v":{"$error":"#REF!"}},{"$f":"IF(B62=\"\",\"\",B62)","v":""},null,null,null,null,null,null,{"$f":"IF(B62=\"\",\"\",'[1]Race Meeting Information'!$B$3 &\" - \" & B62)","v":""},null,null,null,null,null,null,null,null,null,null,null,null,null,null,null,null,null,null,null,null,null,null,null,null,null,null,null,null,null,null,null,null,null,null,null,null,null,null,null,null,null,"Team 61"]
[null,null,null,null,null,null,null,null,null,null,null,null,null,null,null,null,null,null,null,null,null,null,null,null,null,null,null,{"$f":"IF(#REF!=\"\",\"\",BZ63)","v":{"$error":"#REF!"}},{"$f":"IF(B63=\"\",\"\",B63)","v":""},null,null,null,null,null,null,{"$f":"IF(B63=\"\",\"\",'[1]Race Meeting Information'!$B$3 &\" - \" & B63)","v":""},null,null,null,null,null,null,null,null,null,null,null,null,null,null,null,null,null,null,null,null,null,null,null,null,null,null,null,null,null,null,null,null,null,null,null,null,null,null,null,null,null,"Team 62"]
[null,null,null,null,null,null,null,null,null,null,null,null,null,null,null,null,null,null,null,null,null,null,null,null,null,null,null,{"$f":"IF(#REF!=\"\",\"\",BZ64)","v":{"$error":"#REF!"}},{"$f":"IF(B64=\"\",\"\",B64)","v":""},null,null,null,null,null,null,{"$f":"IF(B64=\"\",\"\",'[1]Race Meeting Information'!$B$3 &\" - \" & B64)","v":""},null,null,null,null,null,null,null,null,null,null,null,null,null,null,null,null,null,null,null,null,null,null,null,null,null,null,null,null,null,null,null,null,null,null,null,null,null,null,null,null,null,"Team 63"]
[null,null,null,null,null,null,null,null,null,null,null,null,null,null,null,null,null,null,null,null,null,null,null,null,null,null,null,{"$f":"IF(#REF!=\"\",\"\",BZ65)","v":{"$error":"#REF!"}},{"$f":"IF(B65=\"\",\"\",B65)","v":""},null,null,null,null,null,null,{"$f":"IF(B65=\"\",\"\",'[1]Race Meeting Information'!$B$3 &\" - \" & B65)","v":""},null,null,null,null,null,null,null,null,null,null,null,null,null,null,null,null,null,null,null,null,null,null,null,null,null,null,null,null,null,null,null,null,null,null,null,null,null,null,null,null,null,"Team 64"]
[null,null,null,null,null,null,null,null,null,null,null,null,null,null,null,null,null,null,null,null,null,null,null,null,null,null,null,{"$f":"IF(#REF!=\"\",\"\",BZ66)","v":{"$error":"#REF!"}},{"$f":"IF(B66=\"\",\"\",B66)","v":""},null,null,null,null,null,null,{"$f":"IF(B66=\"\",\"\",'[1]Race Meeting Information'!$B$3 &\" - \" & B66)","v":""},null,null,null,null,null,null,null,null,null,null,null,null,null,null,null,null,null,null,null,null,null,null,null,null,null,null,null,null,null,null,null,null,null,null,null,null,null,null,null,null,null,"Team 65"]
[null,null,null,null,null,null,null,null,null,null,null,null,null,null,null,null,null,null,null,null,null,null,null,null,null,null,null,{"$f":"IF(#REF!=\"\",\"\",BZ67)","v":{"$error":"#REF!"}},{"$f":"IF(B67=\"\",\"\",B67)","v":""},null,null,null,null,null,null,{"$f":"IF(B67=\"\",\"\",'[1]Race Meeting Information'!$B$3 &\" - \" & B67)","v":""},null,null,null,null,null,null,null,null,null,null,null,null,null,null,null,null,null,null,null,null,null,null,null,null,null,null,null,null,null,null,null,null,null,null,null,null,null,null,null,null,null,"Team 66"]
[null,null,null,null,null,null,null,null,null,null,null,null,null,null,null,null,null,null,null,null,null,null,null,null,null,null,null,{"$f":"IF(#REF!=\"\",\"\",BZ68)","v":{"$error":"#REF!"}},{"$f":"IF(B68=\"\",\"\",B68)","v":""},null,null,null,null,null,null,{"$f":"IF(B68=\"\",\"\",'[1]Race Meeting Information'!$B$3 &\" - \" & B68)","v":""},null,null,null,null,null,null,null,null,null,null,null,null,null,null,null,null,null,null,null,null,null,null,null,null,null,null,null,null,null,null,null,null,null,null,null,null,null,null,null,null,null,"Team 67"]
[null,null,null,null,null,null,null,null,null,null,null,null,null,null,null,null,null,null,null,null,null,null,null,null,null,null,null,{"$f":"IF(#REF!=\"\",\"\",BZ69)","v":{"$error":"#REF!"}},{"$f":"IF(B69=\"\",\"\",B69)","v":""},null,null,null,null,null,null,{"$f":"IF(B69=\"\",\"\",'[1]Race Meeting Information'!$B$3 &\" - \" & B69)","v":""},null,null,null,null,null,null,null,null,null,null,null,null,null,null,null,null,null,null,null,null,null,null,null,null,null,null,null,null,null,null,null,null,null,null,null,null,null,null,null,null,null,"Team 68"]
[null,null,null,null,null,null,null,null,null,null,null,null,null,null,null,null,null,null,null,null,null,null,null,null,null,null,null,{"$f":"IF(#REF!=\"\",\"\",BZ70)","v":{"$error":"#REF!"}},{"$f":"IF(B70=\"\",\"\",B70)","v":""},null,null,null,null,null,null,{"$f":"IF(B70=\"\",\"\",'[1]Race Meeting Information'!$B$3 &\" - \" & B70)","v":""},null,null,null,null,null,null,null,null,null,null,null,null,null,null,null,null,null,null,null,null,null,null,null,null,null,null,null,null,null,null,null,null,null,null,null,null,null,null,null,null,null,"Team 69"]
[null,null,null,null,null,null,null,null,null,null,null,null,null,null,null,null,null,null,null,null,null,null,null,null,null,null,null,{"$f":"IF(#REF!=\"\",\"\",BZ71)","v":{"$error":"#REF!"}},{"$f":"IF(B71=\"\",\"\",B71)","v":""},null,null,null,null,null,null,{"$f":"IF(B71=\"\",\"\",'[1]Race Meeting Information'!$B$3 &\" - \" & B71)","v":""},null,null,null,null,null,null,null,null,null,null,null,null,null,null,null,null,null,null,null,null,null,null,null,null,null,null,null,null,null,null,null,null,null,null,null,null,null,null,null,null,null,"Team 70"]
[null,null,null,null,null,null,null,null,null,null,null,null,null,null,null,null,null,null,null,null,null,null,null,null,null,null,null,{"$f":"IF(#REF!=\"\",\"\",BZ72)","v":{"$error":"#REF!"}},{"$f":"IF(B72=\"\",\"\",B72)","v":""},null,null,null,null,null,null,{"$f":"IF(B72=\"\",\"\",'[1]Race Meeting Information'!$B$3 &\" - \" & B72)","v":""},null,null,null,null,null,null,null,null,null,null,null,null,null,null,null,null,null,null,null,null,null,null,null,null,null,null,null,null,null,null,null,null,null,null,null,null,null,null,null,null,null,"Team 71"]
[null,null,null,null,null,null,null,null,null,null,null,null,null,null,null,null,null,null,null,null,null,null,null,null,null,null,null,{"$f":"IF(#REF!=\"\",\"\",BZ73)","v":{"$error":"#REF!"}},{"$f":"IF(B73=\"\",\"\",B73)","v":""},null,null,null,null,null,null,{"$f":"IF(B73=\"\",\"\",'[1]Race Meeting Information'!$B$3 &\" - \" & B73)","v":""},null,null,null,null,null,null,null,null,null,null,null,null,null,null,null,null,null,null,null,null,null,null,null,null,null,null,null,null,null,null,null,null,null,null,null,null,null,null,null,null,null,"Team 72"]
[null,null,null,null,null,null,null,null,null,null,null,null,null,null,null,null,null,null,null,null,null,null,null,null,null,null,null,{"$f":"IF(#REF!=\"\",\"\",BZ74)","v":{"$error":"#REF!"}},{"$f":"IF(B74=\"\",\"\",B74)","v":""},null,null,null,null,null,null,{"$f":"IF(B74=\"\",\"\",'[1]Race Meeting Information'!$B$3 &\" - \" & B74)","v":""},null,null,null,null,null,null,null,null,null,null,null,null,null,null,null,null,null,null,null,null,null,null,null,null,null,null,null,null,null,null,null,null,null,null,null,null,null,null,null,null,null,"Team 73"]
[null,null,null,null,null,null,null,null,null,null,null,null,null,null,null,null,null,null,null,null,null,null,null,null,null,null,null,{"$f":"IF(#REF!=\"\",\"\",BZ75)","v":{"$error":"#REF!"}},{"$f":"IF(B75=\"\",\"\",B75)","v":""},null,null,null,null,null,null,{"$f":"IF(B75=\"\",\"\",'[1]Race Meeting Information'!$B$3 &\" - \" & B75)","v":""},null,null,null,null,null,null,null,null,null,null,null,null,null,null,null,null,null,null,null,null,null,null,null,null,null,null,null,null,null,null,null,null,null,null,null,null,null,null,null,null,null,"Team 74"]
[null,null,null,null,null,null,null,null,null,null,null,null,null,null,null,null,null,null,null,null,null,null,null,null,null,null,null,{"$f":"IF(#REF!=\"\",\"\",BZ76)","v":{"$error":"#REF!"}},{"$f":"IF(B76=\"\",\"\",B76)","v":""},null,null,null,null,null,null,{"$f":"IF(B76=\"\",\"\",'[1]Race Meeting Information'!$B$3 &\" - \" & B76)","v":""},null,null,null,null,null,null,null,null,null,null,null,null,null,null,null,null,null,null,null,null,null,null,null,null,null,null,null,null,null,null,null,null,null,null,null,null,null,null,null,null,null,"Team 75"]
[null,null,null,null,null,null,null,null,null,null,null,null,null,null,null,null,null,null,null,null,null,null,null,null,null,null,null,{"$f":"IF(#REF!=\"\",\"\",BZ77)","v":{"$error":"#REF!"}},{"$f":"IF(B77=\"\",\"\",B77)","v":""},null,null,null,null,null,null,{"$f":"IF(B77=\"\",\"\",'[1]Race Meeting Information'!$B$3 &\" - \" & B77)","v":""},null,null,null,null,null,null,null,null,null,null,null,null,null,null,null,null,null,null,null,null,null,null,null,null,null,null,null,null,null,null,null,null,null,null,null,null,null,null,null,null,null,"Team 76"]
[null,null,null,null,null,null,null,null,null,null,null,null,null,null,null,null,null,null,null,null,null,null,null,null,null,null,null,{"$f":"IF(#REF!=\"\",\"\",BZ78)","v":{"$error":"#REF!"}},{"$f":"IF(B78=\"\",\"\",B78)","v":""},null,null,null,null,null,null,{"$f":"IF(B78=\"\",\"\",'[1]Race Meeting Information'!$B$3 &\" - \" & B78)","v":""},null,null,null,null,null,null,null,null,null,null,null,null,null,null,null,null,null,null,null,null,null,null,null,null,null,null,null,null,null,null,null,null,null,null,null,null,null,null,null,null,null,"Team 77"]
[null,null,null,null,null,null,null,null,null,null,null,null,null,null,null,null,null,null,null,null,null,null,null,null,null,null,null,{"$f":"IF(#REF!=\"\",\"\",BZ79)","v":{"$error":"#REF!"}},{"$f":"IF(B79=\"\",\"\",B79)","v":""},null,null,null,null,null,null,{"$f":"IF(B79=\"\",\"\",'[1]Race Meeting Information'!$B$3 &\" - \" & B79)","v":""},null,null,null,null,null,null,null,null,null,null,null,null,null,null,null,null,null,null,null,null,null,null,null,null,null,null,null,null,null,null,null,null,null,null,null,null,null,null,null,null,null,"Team 78"]
[null,null,null,null,null,null,null,null,null,null,null,null,null,null,null,null,null,null,null,null,null,null,null,null,null,null,null,{"$f":"IF(#REF!=\"\",\"\",BZ80)","v":{"$error":"#REF!"}},{"$f":"IF(B80=\"\",\"\",B80)","v":""},null,null,null,null,null,null,{"$f":"IF(B80=\"\",\"\",'[1]Race Meeting Information'!$B$3 &\" - \" & B80)","v":""},null,null,null,null,null,null,null,null,null,null,null,null,null,null,null,null,null,null,null,null,null,null,null,null,null,null,null,null,null,null,null,null,null,null,null,null,null,null,null,null,null,"Team 79"]
[null,null,null,null,null,null,null,null,null,null,null,null,null,null,null,null,null,null,null,null,null,null,null,null,null,null,null,{"$f":"IF(#REF!=\"\",\"\",BZ81)","v":{"$error":"#REF!"}},{"$f":"IF(B81=\"\",\"\",B81)","v":""},null,null,null,null,null,null,{"$f":"IF(B81=\"\",\"\",'[1]Race Meeting Information'!$B$3 &\" - \" & B81)","v":""},null,null,null,null,null,null,null,null,null,null,null,null,null,null,null,null,null,null,null,null,null,null,null,null,null,null,null,null,null,null,null,null,null,null,null,null,null,null,null,null,null,"Team 80"]
[null,null,null,null,null,null,null,null,null,null,null,null,null,null,null,null,null,null,null,null,null,null,null,null,null,null,null,{"$f":"IF(#REF!=\"\",\"\",BZ82)","v":{"$error":"#REF!"}},{"$f":"IF(B82=\"\",\"\",B82)","v":""},null,null,null,null,null,null,{"$f":"IF(B82=\"\",\"\",'[1]Race Meeting Information'!$B$3 &\" - \" & B82)","v":""},null,null,null,null,null,null,null,null,null,null,null,null,null,null,null,null,null,null,null,null,null,null,null,null,null,null,null,null,null,null,null,null,null,null,null,null,null,null,null,null,null,"Team 81"]
[null,null,null,null,null,null,null,null,null,null,null,null,null,null,null,null,null,null,null,null,null,null,null,null,null,null,null,{"$f":"IF(#REF!=\"\",\"\",BZ83)","v":{"$error":"#REF!"}},{"$f":"IF(B83=\"\",\"\",B83)","v":""},null,null,null,null,null,null,{"$f":"IF(B83=\"\",\"\",'[1]Race Meeting Information'!$B$3 &\" - \" & B83)","v":""},null,null,null,null,null,null,null,null,null,null,null,null,null,null,null,null,null,null,null,null,null,null,null,null,null,null,null,null,null,null,null,null,null,null,null,null,null,null,null,null,null,"Team 82"]
[null,null,null,null,null,null,null,null,null,null,null,null,null,null,null,null,null,null,null,null,null,null,null,null,null,null,null,{"$f":"IF(#REF!=\"\",\"\",BZ84)","v":{"$error":"#REF!"}},{"$f":"IF(B84=\"\",\"\",B84)","v":""},null,null,null,null,null,null,{"$f":"IF(B84=\"\",\"\",'[1]Race Meeting Information'!$B$3 &\" - \" & B84)","v":""},null,null,null,null,null,null,null,null,null,null,null,null,null,null,null,null,null,null,null,null,null,null,null,null,null,null,null,null,null,null,null,null,null,null,null,null,null,null,null,null,null,"Team 83"]
[null,null,null,null,null,null,null,null,null,null,null,null,null,null,null,null,null,null,null,null,null,null,null,null,null,null,null,{"$f":"IF(#REF!=\"\",\"\",BZ85)","v":{"$error":"#REF!"}},{"$f":"IF(B85=\"\",\"\",B85)","v":""},null,null,null,null,null,null,{"$f":"IF(B85=\"\",\"\",'[1]Race Meeting Information'!$B$3 &\" - \" & B85)","v":""},null,null,null,null,null,null,null,null,null,null,null,null,null,null,null,null,null,null,null,null,null,null,null,null,null,null,null,null,null,null,null,null,null,null,null,null,null,null,null,null,null,"Team 84"]
[null,null,null,null,null,null,null,null,null,null,null,null,null,null,null,null,null,null,null,null,null,null,null,null,null,null,null,{"$f":"IF(#REF!=\"\",\"\",BZ86)","v":{"$error":"#REF!"}},{"$f":"IF(B86=\"\",\"\",B86)","v":""},null,null,null,null,null,null,{"$f":"IF(B86=\"\",\"\",'[1]Race Meeting Information'!$B$3 &\" - \" & B86)","v":""},null,null,null,null,null,null,null,null,null,null,null,null,null,null,null,null,null,null,null,null,null,null,null,null,null,null,null,null,null,null,null,null,null,null,null,null,null,null,null,null,null,"Team 85"]
[null,null,null,null,null,null,null,null,null,null,null,null,null,null,null,null,null,null,null,null,null,null,null,null,null,null,null,{"$f":"IF(#REF!=\"\",\"\",BZ87)","v":{"$error":"#REF!"}},{"$f":"IF(B87=\"\",\"\",B87)","v":""},null,null,null,null,null,null,{"$f":"IF(B87=\"\",\"\",'[1]Race Meeting Information'!$B$3 &\" - \" & B87)","v":""},null,null,null,null,null,null,null,null,null,null,null,null,null,null,null,null,null,null,null,null,null,null,null,null,null,null,null,null,null,null,null,null,null,null,null,null,null,null,null,null,null,"Team 86"]
[null,null,null,null,null,null,null,null,null,null,null,null,null,null,null,null,null,null,null,null,null,null,null,null,null,null,null,{"$f":"IF(#REF!=\"\",\"\",BZ88)","v":{"$error":"#REF!"}},{"$f":"IF(B88=\"\",\"\",B88)","v":""},null,null,null,null,null,null,{"$f":"IF(B88=\"\",\"\",'[1]Race Meeting Information'!$B$3 &\" - \" & B88)","v":""},null,null,null,null,null,null,null,null,null,null,null,null,null,null,null,null,null,null,null,null,null,null,null,null,null,null,null,null,null,null,null,null,null,null,null,null,null,null,null,null,null,"Team 87"]
[null,null,null,null,null,null,null,null,null,null,null,null,null,null,null,null,null,null,null,null,null,null,null,null,null,null,null,{"$f":"IF(#REF!=\"\",\"\",BZ89)","v":{"$error":"#REF!"}},{"$f":"IF(B89=\"\",\"\",B89)","v":""},null,null,null,null,null,null,{"$f":"IF(B89=\"\",\"\",'[1]Race Meeting Information'!$B$3 &\" - \" & B89)","v":""},null,null,null,null,null,null,null,null,null,null,null,null,null,null,null,null,null,null,null,null,null,null,null,null,null,null,null,null,null,null,null,null,null,null,null,null,null,null,null,null,null,"Team 88"]
[null,null,null,null,null,null,null,null,null,null,null,null,null,null,null,null,null,null,null,null,null,null,null,null,null,null,null,{"$f":"IF(#REF!=\"\",\"\",BZ90)","v":{"$error":"#REF!"}},{"$f":"IF(B90=\"\",\"\",B90)","v":""},null,null,null,null,null,null,{"$f":"IF(B90=\"\",\"\",'[1]Race Meeting Information'!$B$3 &\" - \" & B90)","v":""},null,null,null,null,null,null,null,null,null,null,null,null,null,null,null,null,null,null,null,null,null,null,null,null,null,null,null,null,null,null,null,null,null,null,null,null,null,null,null,null,null,"Team 89"]
[null,null,null,null,null,null,null,null,null,null,null,null,null,null,null,null,null,null,null,null,null,null,null,null,null,null,null,{"$f":"IF(#REF!=\"\",\"\",BZ91)","v":{"$error":"#REF!"}},{"$f":"IF(B91=\"\",\"\",B91)","v":""},null,null,null,null,null,null,{"$f":"IF(B91=\"\",\"\",'[1]Race Meeting Information'!$B$3 &\" - \" & B91)","v":""},null,null,null,null,null,null,null,null,null,null,null,null,null,null,null,null,null,null,null,null,null,null,null,null,null,null,null,null,null,null,null,null,null,null,null,null,null,null,null,null,null,"Team 90"]
[null,null,null,null,null,null,null,null,null,null,null,null,null,null,null,null,null,null,null,null,null,null,null,null,null,null,null,{"$f":"IF(#REF!=\"\",\"\",BZ92)","v":{"$error":"#REF!"}},{"$f":"IF(B92=\"\",\"\",B92)","v":""},null,null,null,null,null,null,{"$f":"IF(B92=\"\",\"\",'[1]Race Meeting Information'!$B$3 &\" - \" & B92)","v":""},null,null,null,null,null,null,null,null,null,null,null,null,null,null,null,null,null,null,null,null,null,null,null,null,null,null,null,null,null,null,null,null,null,null,null,null,null,null,null,null,null,"Team 91"]
[null,null,null,null,null,null,null,null,null,null,null,null,null,null,null,null,null,null,null,null,null,null,null,null,null,null,null,{"$f":"IF(#REF!=\"\",\"\",BZ93)","v":{"$error":"#REF!"}},"",null,null,null,null,null,null,{"$f":"IF(B93=\"\",\"\",'[1]Race Meeting Information'!$B$3 &\" - \" & B93)","v":""},null,null,null,null,null,null,null,null,null,null,null,null,null,null,null,null,null,null,null,null,null,null,null,null,null,null,null,null,null,null,null,null,null,null,null,null,null,null,null,null,null,"Team 92"]
[null,null,null,null,null,null,null,null,null,null,null,null,null,null,null,null,null,null,null,null,null,null,null,null,null,null,null,{"$f":"IF(#REF!=\"\",\"\",BZ94)","v":{"$error":"#REF!"}},"",null,null,null,null,null,null,{"$f":"IF(B94=\"\",\"\",'[1]Race Meeting Information'!$B$3 &\" - \" & B94)","v":""},null,null,null,null,null,null,null,null,null,null,null,null,null,null,null,null,null,null,null,null,null,null,null,null,null,null,null,null,null,null,null,null,null,null,null,null,null,null,null,null,null,"Team 93"]
[null,null,null,null,null,null,null,null,null,null,null,null,null,null,null,null,null,null,null,null,null,null,null,null,null,null,null,{"$f":"IF(#REF!=\"\",\"\",BZ95)","v":{"$error":"#REF!"}},"",null,null,null,null,null,null,{"$f":"IF(B95=\"\",\"\",'[1]Race Meeting Information'!$B$3 &\" - \" & B95)","v":""},null,null,null,null,null,null,null,null,null,null,null,null,null,null,null,null,null,null,null,null,null,null,null,null,null,null,null,null,null,null,null,null,null,null,null,null,null,null,null,null,null,"Team 94"]
[null,null,null,null,null,null,null,null,null,null,null,null,null,null,null,null,null,null,null,null,null,null,null,null,null,null,null,{"$f":"IF(#REF!=\"\",\"\",BZ96)","v":{"$error":"#REF!"}},"",null,null,null,null,null,null,{"$f":"IF(B96=\"\",\"\",'[1]Race Meeting Information'!$B$3 &\" - \" & B96)","v":""},null,null,null,null,null,null,null,null,null,null,null,null,null,null,null,null,null,null,null,null,null,null,null,null,null,null,null,null,null,null,null,null,null,null,null,null,null,null,null,null,null,"Team 95"]
[null,null,null,null,null,null,null,null,null,null,null,null,null,null,null,null,null,null,null,null,null,null,null,null,null,null,null,{"$f":"IF(#REF!=\"\",\"\",BZ97)","v":{"$error":"#REF!"}},"",null,null,null,null,null,null,{"$f":"IF(B97=\"\",\"\",'[1]Race Meeting Information'!$B$3 &\" - \" & B97)","v":""},null,null,null,null,null,null,null,null,null,null,null,null,null,null,null,null,null,null,null,null,null,null,null,null,null,null,null,null,null,null,null,null,null,null,null,null,null,null,null,null,null,"Team 96"]
[null,null,null,null,null,null,null,null,null,null,null,null,null,null,null,null,null,null,null,null,null,null,null,null,null,null,null,{"$f":"IF(#REF!=\"\",\"\",BZ98)","v":{"$error":"#REF!"}},"",null,null,null,null,null,null,{"$f":"IF(B98=\"\",\"\",'[1]Race Meeting Information'!$B$3 &\" - \" & B98)","v":""},null,null,null,null,null,null,null,null,null,null,null,null,null,null,null,null,null,null,null,null,null,null,null,null,null,null,null,null,null,null,null,null,null,null,null,null,null,null,null,null,null,"Team 97"]
[null,null,null,null,null,null,null,null,null,null,null,null,null,null,null,null,null,null,null,null,null,null,null,null,null,null,null,{"$f":"IF(#REF!=\"\",\"\",BZ99)","v":{"$error":"#REF!"}},"",null,null,null,null,null,null,{"$f":"IF(B99=\"\",\"\",'[1]Race Meeting Information'!$B$3 &\" - \" & B99)","v":""},null,null,null,null,null,null,null,null,null,null,null,null,null,null,null,null,null,null,null,null,null,null,null,null,null,null,null,null,null,null,null,null,null,null,null,null,null,null,null,null,null,"Team 98"]
[null,null,null,null,null,null,null,null,null,null,null,null,null,null,null,null,null,null,null,null,null,null,null,null,null,null,null,{"$f":"IF(#REF!=\"\",\"\",BZ100)","v":{"$error":"#REF!"}},"",null,null,null,null,null,null,{"$f":"IF(B100=\"\",\"\",'[1]Race Meeting Information'!$B$3 &\" - \" & B100)","v":""},null,null,null,null,null,null,null,null,null,null,null,null,null,null,null,null,null,null,null,null,null,null,null,null,null,null,null,null,null,null,null,null,null,null,null,null,null,null,null,null,null,"Team 99"]
[null,null,null,null,null,null,null,null,null,null,null,null,null,null,null,null,null,null,null,null,null,null,null,null,null,null,null,{"$f":"IF(#REF!=\"\",\"\",BZ101)","v":{"$error":"#REF!"}},"",null,null,null,null,null,null,{"$f":"IF(B101=\"\",\"\",'[1]Race Meeting Information'!$B$3 &\" - \" & B101)","v":""},null,null,null,null,null,null,null,null,null,null,null,null,null,null,null,null,null,null,null,null,null,null,null,null,null,null,null,null,null,null,null,null,null,null,null,null,null,null,null,null,null,"Team 100"]
[null,null,null,null,null,null,null,null,null,null,null,null,null,null,null,null,null,null,null,null,null,null,null,null,null,null,null,{"$f":"IF(#REF!=\"\",\"\",BZ101)","v":{"$error":"#REF!"}},"",null,null,null,null,null,null,null,null,null,null,null,null,null,null,null,null,null,null,null,null,null,null,null,null,null,null,null,null,null,null,null,null,null,null,null,null,null,null,null,null,null,null,null,null,null,null,null,null,"Team 101"]